[Event "Titled Tuesday Blitz April 26 Early 2022"]
[White "Maghsoodloo, Parham"]
[Black "Gokerkan, Cem Kaan"]
[WhiteFideId "12539929"]
[BlackFideId "6336760"]
[WhiteElo "2630"]
[BlackElo "2382"]
[Result "0-1"]
[Round "07"]
[TimeControl "180+1"]
[Date "2022.04.26"]
[WhiteClock "0:00:05"]
[BlackClock "0:00:13"]

1. d4 {[%clk 0:03:00]}  Nf6 {[%clk 0:02:59]} 2. c4 {[%clk 0:03:01]}  e6 {[%clk 0:03:00]} 3. Nf3 {[%clk 0:03:01]}  d5 {[%clk 0:03:00]} 4. Nc3 {[%clk 0:03:01]}  Be7 {[%clk 0:03:01]} 5. cxd5 {[%clk 0:03:01]}  exd5 {[%clk 0:03:01]} 6. Bf4 {[%clk 0:03:02]}  O-O {[%clk 0:03:01]} 7. e3 {[%clk 0:03:02]}  c6 {[%clk 0:03:01]} 8. Bd3 {[%clk 0:03:01]}  Re8 {[%clk 0:03:00]} 9. h3 {[%clk 0:03:01]}  Nbd7 {[%clk 0:02:55]} 10. Qc2 {[%clk 0:03:01]}  Nf8 {[%clk 0:02:55]} 11. Rb1 {[%clk 0:03:01]}  a5 {[%clk 0:02:54]} 12. a3 {[%clk 0:03:01]}  Ng6 {[%clk 0:02:49]} 13. Bh2 {[%clk 0:03:00]}  Bd6 {[%clk 0:02:48]} 14. Bxd6 {[%clk 0:02:58]}  Qxd6 {[%clk 0:02:49]} 15. b4 {[%clk 0:02:58]}  a4 {[%clk 0:02:50]} 16. Nxa4 {[%clk 0:02:41]}  Nf4 {[%clk 0:02:47]} 17. Nc5 {[%clk 0:02:21]}  b6 {[%clk 0:02:28]} 18. Nb3 {[%clk 0:01:42]}  Rxa3 {[%clk 0:02:14]} 19. Ne5 {[%clk 0:01:25]}  Qxb4+ {[%clk 0:01:47]} 20. Nd2 {[%clk 0:01:21]}  Nxd3+ {[%clk 0:01:40]} 21. Nxd3 {[%clk 0:00:50]}  Qxd4 {[%clk 0:01:37]} 22. Rb3 {[%clk 0:00:40]}  Rxb3 {[%clk 0:01:30]} 23. Nxb3 {[%clk 0:00:31]}  Qc4 {[%clk 0:01:30]} 24. Kd2 {[%clk 0:00:27]}  Bf5 {[%clk 0:01:19]} 25. Rc1 {[%clk 0:00:20]}  Ne4+ {[%clk 0:00:46]} 26. Ke1 {[%clk 0:00:19]}  c5 {[%clk 0:00:39]} 27. Nf4 {[%clk 0:00:08]}  Qb4+ {[%clk 0:00:32]} 28. Nd2 {[%clk 0:00:07]}  Nxd2 {[%clk 0:00:28]} 29. Nxd5 {[%clk 0:00:04]}  Nf3+ {[%clk 0:00:17]} 30. Ke2 {[%clk 0:00:05]}  Nd4+ {[%clk 0:00:13]} 31. Kf1 {[%clk 0:00:05]}  Nxc2 {[%clk 0:00:13]} 0-1


[Site "https://www.chess.com"]

[Event "Titled Tuesday Blitz April 26 Early 2022"]
[White "Maksimovic, Bojan"]
[Black "Sarana, Alexey"]
[WhiteFideId "14408120"]
[BlackFideId "24133795"]
[WhiteElo "2448"]
[BlackElo "2666"]
[Result "0-1"]
[Round "07"]
[TimeControl "180+1"]
[Date "2022.04.26"]
[WhiteClock "0:00:02"]
[BlackClock "0:00:21"]

1. e4 {[%clk 0:03:00]}  c5 {[%clk 0:02:58]} 2. Nf3 {[%clk 0:03:00]}  d6 {[%clk 0:02:59]} 3. d4 {[%clk 0:03:01]}  cxd4 {[%clk 0:02:59]} 4. Nxd4 {[%clk 0:03:01]}  Nf6 {[%clk 0:03:00]} 5. Nc3 {[%clk 0:03:02]}  a6 {[%clk 0:03:01]} 6. Be2 {[%clk 0:03:02]}  e5 {[%clk 0:03:01]} 7. Nb3 {[%clk 0:03:01]}  Be7 {[%clk 0:03:01]} 8. O-O {[%clk 0:03:00]}  O-O {[%clk 0:03:00]} 9. Qd3 {[%clk 0:02:59]}  Be6 {[%clk 0:02:59]} 10. Bd2 {[%clk 0:02:52]}  Nbd7 {[%clk 0:02:54]} 11. Nd5 {[%clk 0:02:50]}  Bxd5 {[%clk 0:02:54]} 12. exd5 {[%clk 0:02:50]}  Qb8 {[%clk 0:02:54]} 13. a4 {[%clk 0:02:32]}  Rc8 {[%clk 0:02:54]} 14. a5 {[%clk 0:02:31]}  Bd8 {[%clk 0:02:55]} 15. c4 {[%clk 0:02:20]}  b6 {[%clk 0:02:52]} 16. axb6 {[%clk 0:02:10]}  Bxb6 {[%clk 0:02:53]} 17. Bc3 {[%clk 0:01:48]}  Bxf2+ {[%clk 0:02:40]} 18. Rxf2 {[%clk 0:01:41]}  Qxb3 {[%clk 0:02:41]} 19. Raf1 {[%clk 0:01:07]}  Nc5 {[%clk 0:02:17]} 20. Qe3 {[%clk 0:00:40]}  Nce4 {[%clk 0:01:44]} 21. Rf3 {[%clk 0:00:35]}  Rab8 {[%clk 0:01:05]} 22. Bd3 {[%clk 0:00:19]}  Rxc4 {[%clk 0:01:05]} 23. Bxc4 {[%clk 0:00:05]}  Qxc4 {[%clk 0:01:06]} 24. h3 {[%clk 0:00:06]}  h6 {[%clk 0:00:59]} 25. Kh2 {[%clk 0:00:06]}  Rf8 {[%clk 0:00:55]} 26. Qe1 {[%clk 0:00:06]}  Nxd5 {[%clk 0:00:53]} 27. Qh4 {[%clk 0:00:06]}  Nd2 {[%clk 0:00:42]} 28. Qxc4 {[%clk 0:00:02]}  Nxc4 {[%clk 0:00:43]} 29. Be1 {[%clk 0:00:02]}  Rb8 {[%clk 0:00:39]} 30. Rd3 {[%clk 0:00:02]}  Nf4 {[%clk 0:00:37]} 31. Rd1 {[%clk 0:00:02]}  Rxb2 {[%clk 0:00:36]} 32. Rf2 {[%clk 0:00:02]}  Rb6 {[%clk 0:00:32]} 33. g3 {[%clk 0:00:02]}  Ne6 {[%clk 0:00:31]} 34. Re2 {[%clk 0:00:02]}  a5 {[%clk 0:00:30]} 35. Ra2 {[%clk 0:00:02]}  Ra6 {[%clk 0:00:21]} 36. Kg2 {[%clk 0:00:03]}  Ne3+ {[%clk 0:00:21]} 37. Kf3 {[%clk 0:00:02]}  Nxd1 {[%clk 0:00:21]} 0-1


[Site "https://www.chess.com"]

[Event "Titled Tuesday Blitz April 26 Early 2022"]
[White "Matamoros Franco, Carlos S."]
[Black "Redor, Menandro"]
[WhiteFideId "3600017"]
[BlackFideId "5222010"]
[WhiteElo "2554"]
[BlackElo "1986"]
[Result "1-0"]
[Round "07"]
[TimeControl "180+1"]
[Date "2022.04.26"]
[WhiteClock "0:00:06"]
[BlackClock "0:00:01"]

1. c4 {[%clk 0:02:51]}  c6 {[%clk 0:02:55]} 2. Nf3 {[%clk 0:02:50]}  d5 {[%clk 0:02:55]} 3. g3 {[%clk 0:02:50]}  g6 {[%clk 0:02:54]} 4. Qa4 {[%clk 0:02:48]}  dxc4 {[%clk 0:02:42]} 5. Qxc4 {[%clk 0:02:47]}  Bg7 {[%clk 0:02:42]} 6. Bg2 {[%clk 0:02:46]}  Nf6 {[%clk 0:02:41]} 7. O-O {[%clk 0:02:43]}  O-O {[%clk 0:02:42]} 8. d3 {[%clk 0:02:43]}  Nbd7 {[%clk 0:02:35]} 9. Qh4 {[%clk 0:02:42]}  Qc7 {[%clk 0:02:29]} 10. Bh6 {[%clk 0:02:40]}  Ne5 {[%clk 0:02:18]} 11. Nbd2 {[%clk 0:02:33]}  Bxh6 {[%clk 0:01:56]} 12. Qxh6 {[%clk 0:02:32]}  Neg4 {[%clk 0:01:54]} 13. Qg5 {[%clk 0:02:21]}  b6 {[%clk 0:01:25]} 14. h3 {[%clk 0:02:00]}  h6 {[%clk 0:01:20]} 15. Qf4 {[%clk 0:01:53]}  e5 {[%clk 0:01:18]} 16. Qa4 {[%clk 0:01:49]}  b5 {[%clk 0:01:02]} 17. Qc2 {[%clk 0:01:45]}  e4 {[%clk 0:01:02]} 18. dxe4 {[%clk 0:01:37]}  Ne5 {[%clk 0:00:59]} 19. Nd4 {[%clk 0:01:25]}  a6 {[%clk 0:00:48]} 20. f4 {[%clk 0:01:17]}  Qb6 {[%clk 0:00:46]} 21. e3 {[%clk 0:01:17]}  c5 {[%clk 0:00:31]} 22. fxe5 {[%clk 0:01:14]}  cxd4 {[%clk 0:00:31]} 23. Rxf6 {[%clk 0:01:13]}  Be6 {[%clk 0:00:30]} 24. Nb3 {[%clk 0:00:58]}  dxe3 {[%clk 0:00:20]} 25. Qc5 {[%clk 0:00:52]}  Qb8 {[%clk 0:00:13]} 26. Qxe3 {[%clk 0:00:22]}  Qxe5 {[%clk 0:00:12]} 27. Rf2 {[%clk 0:00:22]}  Rad8 {[%clk 0:00:08]} 28. Raf1 {[%clk 0:00:18]}  Bc4 {[%clk 0:00:08]} 29. Re1 {[%clk 0:00:17]}  Rd3 {[%clk 0:00:08]} 30. Qf4 {[%clk 0:00:16]}  Qe7 {[%clk 0:00:06]} 31. Nc1 {[%clk 0:00:15]}  Rd7 {[%clk 0:00:04]} 32. Qxh6 {[%clk 0:00:15]}  Rfd8 {[%clk 0:00:04]} 33. Ne2 {[%clk 0:00:14]}  Qe5 {[%clk 0:00:04]} 34. Nf4 {[%clk 0:00:14]}  Rd2 {[%clk 0:00:04]} 35. Ne6 {[%clk 0:00:04]}  Qd5 {[%clk 0:00:04]} 36. exd5 {[%clk 0:00:04]}  fxe6 {[%clk 0:00:04]} 37. Rxd2 {[%clk 0:00:03]}  Rd7 {[%clk 0:00:03]} 38. Qxg6+ {[%clk 0:00:04]}  Kf8 {[%clk 0:00:03]} 39. Qf6+ {[%clk 0:00:04]}  Rf7 {[%clk 0:00:03]} 40. Qh8+ {[%clk 0:00:05]}  Ke7 {[%clk 0:00:01]} 41. dxe6 {[%clk 0:00:06]}  Rf6 {[%clk 0:00:01]} 42. Qd8# {[%clk 0:00:06]} 1-0


[Site "https://www.chess.com"]

[Event "Titled Tuesday Blitz April 26 Early 2022"]
[White "Mikhnenko, Alexander"]
[Black "Ezat, Mohamed"]
[WhiteFideId "34143014"]
[BlackFideId "10600906"]
[WhiteElo "2117"]
[BlackElo "2386"]
[Result "0-1"]
[Round "07"]
[TimeControl "180+1"]
[Date "2022.04.26"]
[WhiteClock "0:01:34"]
[BlackClock "0:02:04"]

1. e4 {[%clk 0:03:00]}  c5 {[%clk 0:02:57]} 2. Nf3 {[%clk 0:03:00]}  Nc6 {[%clk 0:02:56]} 3. Bb5 {[%clk 0:03:01]}  e6 {[%clk 0:02:52]} 4. Bxc6 {[%clk 0:02:59]}  dxc6 {[%clk 0:02:51]} 5. O-O {[%clk 0:02:58]}  Ne7 {[%clk 0:02:51]} 6. d3 {[%clk 0:02:58]}  Ng6 {[%clk 0:02:51]} 7. Nbd2 {[%clk 0:02:54]}  Bd6 {[%clk 0:02:52]} 8. Nc4 {[%clk 0:02:52]}  Bc7 {[%clk 0:02:52]} 9. a4 {[%clk 0:02:51]}  O-O {[%clk 0:02:49]} 10. Be3 {[%clk 0:02:37]}  b6 {[%clk 0:02:48]} 11. e5 {[%clk 0:02:23]}  Ba6 {[%clk 0:02:46]} 12. Qe2 {[%clk 0:02:19]}  Bxc4 {[%clk 0:02:45]} 13. dxc4 {[%clk 0:02:20]}  Nxe5 {[%clk 0:02:44]} 14. Nxe5 {[%clk 0:02:20]}  Bxe5 {[%clk 0:02:44]} 15. Bxc5 {[%clk 0:02:20]}  Bxh2+ {[%clk 0:02:37]} 16. Kxh2 {[%clk 0:02:21]}  bxc5 {[%clk 0:02:37]} 17. b3 {[%clk 0:02:15]}  Qh4+ {[%clk 0:02:29]} 18. Kg1 {[%clk 0:02:15]}  Rad8 {[%clk 0:02:29]} 19. Rad1 {[%clk 0:02:12]}  Rd4 {[%clk 0:02:29]} 20. c3 {[%clk 0:01:48]}  Rxd1 {[%clk 0:02:24]} 21. Rxd1 {[%clk 0:01:49]}  Rd8 {[%clk 0:02:21]} 22. Rxd8+ {[%clk 0:01:47]}  Qxd8 {[%clk 0:02:20]} 23. g3 {[%clk 0:01:47]}  g6 {[%clk 0:02:18]} 24. Qe5 {[%clk 0:01:45]}  Qd1+ {[%clk 0:02:13]} 25. Kg2 {[%clk 0:01:46]}  Qxb3 {[%clk 0:02:13]} 26. Qxc5 {[%clk 0:01:44]}  Qxa4 {[%clk 0:02:13]} 27. Qd6 {[%clk 0:01:41]}  Qxc4 {[%clk 0:02:11]} 28. Qb8+ {[%clk 0:01:41]}  Kg7 {[%clk 0:02:10]} 29. Qe5+ {[%clk 0:01:42]}  Kh6 {[%clk 0:02:05]} 30. Qe3+ {[%clk 0:01:38]}  g5 {[%clk 0:02:05]} 31. Qe5 {[%clk 0:01:34]}  Qd5+ {[%clk 0:02:04]} 0-1


[Site "https://www.chess.com"]

[Event "Titled Tuesday Blitz April 26 Early 2022"]
[White "Mohammadian, Mohammad"]
[Black "Minko, Dmitry"]
[WhiteFideId "12566055"]
[BlackFideId "24188468"]
[WhiteElo "1544"]
[BlackElo "1928"]
[Result "0-1"]
[Round "07"]
[TimeControl "180+1"]
[Date "2022.04.26"]
[WhiteClock "0:00:55"]
[BlackClock "0:00:10"]

1. e4 {[%clk 0:03:00]}  e5 {[%clk 0:01:41]} 2. Nf3 {[%clk 0:02:59]}  Nc6 {[%clk 0:01:39]} 3. Bb5 {[%clk 0:02:59]}  Nf6 {[%clk 0:01:39]} 4. O-O {[%clk 0:02:58]}  Nxe4 {[%clk 0:01:40]} 5. Re1 {[%clk 0:02:57]}  Nd6 {[%clk 0:01:40]} 6. Bxc6 {[%clk 0:02:57]}  dxc6 {[%clk 0:01:39]} 7. Nxe5 {[%clk 0:02:57]}  Be7 {[%clk 0:01:40]} 8. d4 {[%clk 0:02:56]}  O-O {[%clk 0:01:38]} 9. Bf4 {[%clk 0:02:53]}  Bf6 {[%clk 0:01:36]} 10. c3 {[%clk 0:02:50]}  g5 {[%clk 0:01:05]} 11. Bg3 {[%clk 0:02:48]}  h6 {[%clk 0:01:05]} 12. Qh5 {[%clk 0:02:45]}  Bg7 {[%clk 0:01:04]} 13. Nd2 {[%clk 0:02:39]}  Nf5 {[%clk 0:00:56]} 14. Qf3 {[%clk 0:02:31]}  Nxg3 {[%clk 0:00:42]} 15. hxg3 {[%clk 0:02:29]}  Be6 {[%clk 0:00:33]} 16. Qe3 {[%clk 0:02:22]}  Qd5 {[%clk 0:00:24]} 17. Ndf3 {[%clk 0:02:18]}  Rad8 {[%clk 0:00:18]} 18. b3 {[%clk 0:02:14]}  Rfe8 {[%clk 0:00:17]} 19. Qe4 {[%clk 0:02:09]}  Qxe4 {[%clk 0:00:16]} 20. Rxe4 {[%clk 0:02:08]}  f6 {[%clk 0:00:14]} 21. Nc4 {[%clk 0:01:57]}  Bd5 {[%clk 0:00:08]} 22. Rxe8+ {[%clk 0:01:57]}  Rxe8 {[%clk 0:00:09]} 23. Re1 {[%clk 0:01:55]}  Rxe1+ {[%clk 0:00:08]} 24. Nxe1 {[%clk 0:01:54]}  f5 {[%clk 0:00:09]} 25. Kf1 {[%clk 0:01:54]}  c5 {[%clk 0:00:08]} 26. Ne5 {[%clk 0:01:52]}  cxd4 {[%clk 0:00:07]} 27. cxd4 {[%clk 0:01:51]}  c5 {[%clk 0:00:08]} 28. N5d3 {[%clk 0:01:42]}  Bxd4 {[%clk 0:00:07]} 29. f3 {[%clk 0:01:41]}  c4 {[%clk 0:00:07]} 30. bxc4 {[%clk 0:01:40]}  Bxc4 {[%clk 0:00:07]} 31. Ke2 {[%clk 0:01:37]}  Bxa2 {[%clk 0:00:08]} 32. Nb4 {[%clk 0:01:35]}  Bc4+ {[%clk 0:00:07]} 33. Kd2 {[%clk 0:01:31]}  a5 {[%clk 0:00:08]} 34. Nbd3 {[%clk 0:01:30]}  b5 {[%clk 0:00:08]} 35. f4 {[%clk 0:01:29]}  Kf7 {[%clk 0:00:06]} 36. fxg5 {[%clk 0:01:29]}  hxg5 {[%clk 0:00:06]} 37. Nf3 {[%clk 0:01:28]}  Bf6 {[%clk 0:00:05]} 38. Nfe5+ {[%clk 0:01:26]}  Ke6 {[%clk 0:00:06]} 39. Nxc4 {[%clk 0:01:25]}  bxc4 {[%clk 0:00:07]} 40. Ne1 {[%clk 0:01:22]}  a4 {[%clk 0:00:06]} 41. Kc2 {[%clk 0:01:22]}  a3 {[%clk 0:00:06]} 42. Kb1 {[%clk 0:01:22]}  Kd5 {[%clk 0:00:05]} 43. Nc2 {[%clk 0:01:21]}  Bb2 {[%clk 0:00:06]} 44. Ka2 {[%clk 0:01:18]}  Ke4 {[%clk 0:00:05]} 45. Nb4 {[%clk 0:01:18]}  Kd4 {[%clk 0:00:05]} 46. Nc6+ {[%clk 0:01:16]}  Kd3 {[%clk 0:00:05]} 47. Ne5+ {[%clk 0:01:15]}  Bxe5 {[%clk 0:00:05]} 48. Kxa3 {[%clk 0:01:14]}  Kd2 {[%clk 0:00:05]} 49. Kb4 {[%clk 0:01:12]}  c3 {[%clk 0:00:06]} 50. Kc5 {[%clk 0:01:12]}  c2 {[%clk 0:00:07]} 51. Kd5 {[%clk 0:01:12]}  Bxg3 {[%clk 0:00:08]} 52. Ke6 {[%clk 0:01:10]}  c1=Q {[%clk 0:00:08]} 53. Kxf5 {[%clk 0:01:09]}  Qf1+ {[%clk 0:00:09]} 54. Kxg5 {[%clk 0:01:09]}  Qf4+ {[%clk 0:00:10]} 55. Kg6 {[%clk 0:01:09]}  Qe5 {[%clk 0:00:10]} 56. Kf7 {[%clk 0:01:08]}  Qd6 {[%clk 0:00:10]} 57. Kg7 {[%clk 0:01:06]}  Be5+ {[%clk 0:00:10]} 58. Kf7 {[%clk 0:01:03]}  Qf6+ {[%clk 0:00:09]} 59. Ke8 {[%clk 0:01:03]}  Qg7 {[%clk 0:00:10]} 60. Kd8 {[%clk 0:01:00]}  Bc7+ {[%clk 0:00:08]} 61. Kc8 {[%clk 0:00:59]}  Bd6 {[%clk 0:00:09]} 62. Kd8 {[%clk 0:00:56]}  Qe7+ {[%clk 0:00:09]} 63. Kc8 {[%clk 0:00:55]}  Qc7# {[%clk 0:00:10]} 0-1


[Site "https://www.chess.com"]

[Event "Titled Tuesday Blitz April 26 Early 2022"]
[White "Moroni, Luca Jr"]
[Black "Paravyan, David"]
[WhiteFideId "865834"]
[BlackFideId "4194985"]
[WhiteElo "2573"]
[BlackElo "2569"]
[Result "0-1"]
[Round "07"]
[TimeControl "180+1"]
[Date "2022.04.26"]
[WhiteClock "0:00:06"]
[BlackClock "0:00:12"]

1. d4 {[%clk 0:03:00]}  Nf6 {[%clk 0:02:39]} 2. c4 {[%clk 0:03:00]}  g6 {[%clk 0:02:38]} 3. g3 {[%clk 0:03:00]}  c6 {[%clk 0:02:38]} 4. Bg2 {[%clk 0:03:00]}  d5 {[%clk 0:02:39]} 5. Qa4 {[%clk 0:02:55]}  Nfd7 {[%clk 0:02:37]} 6. cxd5 {[%clk 0:02:55]}  Nb6 {[%clk 0:02:36]} 7. Qd1 {[%clk 0:02:55]}  cxd5 {[%clk 0:02:35]} 8. Nc3 {[%clk 0:02:55]}  Nc6 {[%clk 0:02:35]} 9. Nf3 {[%clk 0:02:55]}  Bf5 {[%clk 0:02:33]} 10. O-O {[%clk 0:02:51]}  Qd7 {[%clk 0:02:30]} 11. a4 {[%clk 0:02:24]}  Bg7 {[%clk 0:01:52]} 12. a5 {[%clk 0:02:06]}  Nc4 {[%clk 0:01:49]} 13. a6 {[%clk 0:01:39]}  bxa6 {[%clk 0:01:46]} 14. Rxa6 {[%clk 0:01:35]}  Nb4 {[%clk 0:01:44]} 15. Ra1 {[%clk 0:01:26]}  Bc2 {[%clk 0:01:31]} 16. Qe1 {[%clk 0:01:25]}  Bb3 {[%clk 0:01:31]} 17. e4 {[%clk 0:00:53]}  Nc2 {[%clk 0:01:30]} 18. Qe2 {[%clk 0:00:51]}  Nxa1 {[%clk 0:01:29]} 19. Nxd5 {[%clk 0:00:49]}  Nb6 {[%clk 0:01:09]} 20. Bf4 {[%clk 0:00:29]}  Nxd5 {[%clk 0:00:56]} 21. exd5 {[%clk 0:00:30]}  Bxd5 {[%clk 0:00:38]} 22. Rxa1 {[%clk 0:00:29]}  O-O {[%clk 0:00:36]} 23. Be5 {[%clk 0:00:29]}  Qb7 {[%clk 0:00:34]} 24. Bxg7 {[%clk 0:00:28]}  Kxg7 {[%clk 0:00:35]} 25. Ra5 {[%clk 0:00:27]}  Kg8 {[%clk 0:00:28]} 26. h4 {[%clk 0:00:26]}  h5 {[%clk 0:00:16]} 27. Ne1 {[%clk 0:00:10]}  Bxg2 {[%clk 0:00:15]} 28. Nxg2 {[%clk 0:00:11]}  Rab8 {[%clk 0:00:15]} 29. Nf4 {[%clk 0:00:08]}  Qxb2 {[%clk 0:00:15]} 30. Qxe7 {[%clk 0:00:08]}  Qxd4 {[%clk 0:00:14]} 31. Qxa7 {[%clk 0:00:06]}  Rb1+ {[%clk 0:00:13]} 32. Kh2 {[%clk 0:00:05]}  Qe4 {[%clk 0:00:11]} 33. Ng2 {[%clk 0:00:05]}  Rb2 {[%clk 0:00:06]} 34. Ra2 {[%clk 0:00:04]}  Rxa2 {[%clk 0:00:06]} 35. Qxa2 {[%clk 0:00:05]}  Rd8 {[%clk 0:00:07]} 36. Qb2 {[%clk 0:00:05]}  Rd1 {[%clk 0:00:06]} 37. Qa2 {[%clk 0:00:05]}  Qb1 {[%clk 0:00:06]} 38. Qxb1 {[%clk 0:00:05]}  Rxb1 {[%clk 0:00:07]} 39. Nf4 {[%clk 0:00:05]}  Rb2 {[%clk 0:00:08]} 40. Kg2 {[%clk 0:00:05]}  Ra2 {[%clk 0:00:08]} 41. Nd3 {[%clk 0:00:06]}  Kg7 {[%clk 0:00:09]} 42. Nb4 {[%clk 0:00:06]}  Ra8 {[%clk 0:00:09]} 43. Nd5 {[%clk 0:00:06]}  Re8 {[%clk 0:00:10]} 44. Nf4 {[%clk 0:00:06]}  Rh8 {[%clk 0:00:11]} 45. Nd3 {[%clk 0:00:07]}  Ra8 {[%clk 0:00:12]} 46. Nf4 {[%clk 0:00:07]}  Kf6 {[%clk 0:00:12]} 47. Nh3 {[%clk 0:00:08]}  Kf5 {[%clk 0:00:12]} 48. Ng5 {[%clk 0:00:08]}  Ra7 {[%clk 0:00:13]} 49. Nf3 {[%clk 0:00:09]}  Kf6 {[%clk 0:00:13]} 50. Ng5 {[%clk 0:00:08]}  Rd7 {[%clk 0:00:13]} 51. Ne4+ {[%clk 0:00:08]}  Ke5 {[%clk 0:00:14]} 52. Ng5 {[%clk 0:00:09]}  Ra7 {[%clk 0:00:14]} 53. Nf3+ {[%clk 0:00:09]}  Ke4 {[%clk 0:00:14]} 54. Ng5+ {[%clk 0:00:10]}  Kd3 {[%clk 0:00:14]} 55. Kf3 {[%clk 0:00:10]}  Ra5 {[%clk 0:00:14]} 56. Kg2 {[%clk 0:00:07]}  Rf5 {[%clk 0:00:14]} 57. Nh3 {[%clk 0:00:07]}  Ke2 {[%clk 0:00:13]} 58. Ng1+ {[%clk 0:00:07]}  Kd2 {[%clk 0:00:11]} 59. Nf3+ {[%clk 0:00:07]}  Kd3 {[%clk 0:00:12]} 60. Ng1 {[%clk 0:00:07]}  Ra5 {[%clk 0:00:12]} 61. Nf3 {[%clk 0:00:07]}  Ke4 {[%clk 0:00:11]} 62. Ng5+ {[%clk 0:00:07]}  Rxg5 {[%clk 0:00:10]} 63. hxg5 {[%clk 0:00:07]}  Kf5 {[%clk 0:00:11]} 64. f4 {[%clk 0:00:05]}  Kg4 {[%clk 0:00:12]} 65. Kf2 {[%clk 0:00:05]}  h4 {[%clk 0:00:12]} 66. gxh4 {[%clk 0:00:06]}  Kxf4 {[%clk 0:00:12]} 0-1


[Site "https://www.chess.com"]

[Event "Titled Tuesday Blitz April 26 Early 2022"]
[White "Myshakov, Fyodor"]
[Black "Arabidze, Meri"]
[WhiteFideId "14111284"]
[BlackFideId "13604040"]
[WhiteElo "2310"]
[BlackElo "2335"]
[Result "1-0"]
[Round "07"]
[TimeControl "180+1"]
[Date "2022.04.26"]
[WhiteClock "0:00:59"]
[BlackClock "0:01:08"]

1. c4 {[%clk 0:02:58]}  f5 {[%clk 0:02:59]} 2. Nc3 {[%clk 0:02:58]}  Nf6 {[%clk 0:02:59]} 3. Nf3 {[%clk 0:02:58]}  e6 {[%clk 0:03:00]} 4. g3 {[%clk 0:02:58]}  b6 {[%clk 0:02:59]} 5. Bg2 {[%clk 0:02:58]}  Bb7 {[%clk 0:02:59]} 6. O-O {[%clk 0:02:59]}  Be7 {[%clk 0:02:59]} 7. d3 {[%clk 0:02:59]}  O-O {[%clk 0:02:59]} 8. b3 {[%clk 0:03:00]}  Ng4 {[%clk 0:02:51]} 9. Bb2 {[%clk 0:02:59]}  Bf6 {[%clk 0:02:51]} 10. a3 {[%clk 0:02:57]}  Nc6 {[%clk 0:02:43]} 11. b4 {[%clk 0:02:56]}  Ne7 {[%clk 0:02:37]} 12. Qc2 {[%clk 0:02:53]}  Qe8 {[%clk 0:02:37]} 13. Rad1 {[%clk 0:02:51]}  Qh5 {[%clk 0:02:32]} 14. h3 {[%clk 0:02:47]}  Nh6 {[%clk 0:02:19]} 15. Nb5 {[%clk 0:02:33]}  Bxb2 {[%clk 0:02:05]} 16. Qxb2 {[%clk 0:02:33]}  Rfc8 {[%clk 0:02:01]} 17. c5 {[%clk 0:02:12]}  a6 {[%clk 0:01:52]} 18. Nbd4 {[%clk 0:02:11]}  Bd5 {[%clk 0:01:45]} 19. cxb6 {[%clk 0:02:05]}  cxb6 {[%clk 0:01:46]} 20. Rc1 {[%clk 0:02:05]}  Nf7 {[%clk 0:01:41]} 21. Rxc8+ {[%clk 0:01:57]}  Rxc8 {[%clk 0:01:42]} 22. Rc1 {[%clk 0:01:57]}  Nd6 {[%clk 0:01:32]} 23. Rxc8+ {[%clk 0:01:51]}  Nexc8 {[%clk 0:01:32]} 24. Qc1 {[%clk 0:01:45]}  Qe8 {[%clk 0:01:30]} 25. Ne5 {[%clk 0:01:38]}  Bxg2 {[%clk 0:01:26]} 26. Kxg2 {[%clk 0:01:38]}  Qd8 {[%clk 0:01:25]} 27. f4 {[%clk 0:01:32]}  Nf7 {[%clk 0:01:25]} 28. Ndf3 {[%clk 0:01:22]}  Ncd6 {[%clk 0:01:23]} 29. Nxf7 {[%clk 0:01:18]}  Nxf7 {[%clk 0:01:23]} 30. Qc4 {[%clk 0:01:18]}  Qa8 {[%clk 0:01:21]} 31. Qc7 {[%clk 0:01:12]}  Qc6 {[%clk 0:01:16]} 32. Qb8+ {[%clk 0:01:09]}  Nd8 {[%clk 0:01:13]} 33. Qxd8+ {[%clk 0:01:09]}  Kf7 {[%clk 0:01:12]} 34. Kf2 {[%clk 0:01:09]}  d6 {[%clk 0:01:08]} 35. Ng5+ {[%clk 0:01:07]}  Kg6 {[%clk 0:01:08]} 36. Qe7 {[%clk 0:00:59]} 1-0


[Site "https://www.chess.com"]